fUSD/lending_fUSD_20250301
["ID","MTS","AMOUNT","RATE_DAILY","PERIOD"]
[354984382,1740856256317,-500.0,0.00025205,2]
[354984384,1740856256326,-500.0,0.00025205,2]
[354984386,1740856256336,-500.0,0.00025205,2]
[354984387,1740856256345,-651.2,0.00025205,2]
[354984388,1740856256354,-1449.79,0.00025205,2]
[354984389,1740856256363,-500.0,0.00025205,2]
[354984390,1740856256373,-500.0,0.00025205,2]
[354984391,1740856256382,-2292.81,0.00025205,2]
[354984392,1740856256391,-948.25,0.00025205,2]
[354984393,1740856256400,-500.0,0.00025205,2]
[354984394,1740856256410,-500.0,0.00025205,2]
[354984395,1740856256419,-1664.15,0.00025205,2]
[354984396,1740856256432,-500.0,0.00025205,2]
[354984397,1740856256441,-500.0,0.00025205,2]
[354984398,1740856256450,-500.0,0.00025205,2]
[354984399,1740856256460,-902.78,0.00025205,2]
[354984400,1740856256470,-563.76,0.00025205,2]
[354984401,1740856256479,-646.84,0.00025205,2]
[354984402,1740856256489,-1910.125756,0.00025205,7]
[354984403,1740856256498,-1910.125756,0.00025205,7]
[354984404,1740856256509,-500.0,0.00025205,2]
[354984405,1740856256519,-618.01,0.00025205,2]
[354984406,1740856256528,-1910.125756,0.00025205,7]
[354984407,1740856256537,-960.13,0.00025205,2]
[354984408,1740856256547,-5190.55,0.00025205,2]
[354984409,1740856256557,-1910.125756,0.00025205,7]
[354984410,1740856256566,-500.0,0.00025205,2]
[354984411,1740856256575,-1910.125756,0.00025205,7]
[354984412,1740856256584,-253.794155,0.00025205,7]
[354984413,1740856256593,-1910.125756,0.00025205,7]
[354984414,1740856256602,-1910.125756,0.00025205,7]
[354984415,1740856256612,-1609.53,0.00025205,2]
[354984416,1740856256621,-1910.125756,0.00025205,7]
[354984417,1740856256630,-755.39,0.00025205,2]
[354984418,1740856256639,-500.0,0.00025205,2]
[354984419,1740856256648,-500.0,0.00025205,2]
[354984420,1740856256658,-651.25,0.00025205,2]
[354984421,1740856256667,-773.56,0.00025205,2]
[354984422,1740856256676,-294.83491814,0.00025225,2]
[354984423,1740856256686,-200.1811831,0.00025234,4]
[354984424,1740856256695,-2168.4405782,0.00025292,2]
[354984425,1740856256705,-378.525501,0.00025374,7]
[354984426,1740856256715,-378.525501,0.00025374,7]
[354984427,1740856256725,-178.754382,0.00025374,7]
[354984428,1740856256735,-178.754382,0.00025374,7]
[354984429,1740856256744,-151.0,0.00025374,7]
[354984430,1740856256754,-196.081555,0.00025374,7]
[354984431,1740856256763,-196.081555,0.00025374,7]
[354984432,1740856256773,-644.77,0.00025474,2]
[354984433,1740856256782,-151.0,0.00025475,7]
[354984434,1740856256792,-2168.4405782,0.00025475,2]
[354984435,1740856256802,-300.0,0.00025478,10]
[354984436,1740856256811,-666.0,0.00025478,2]
[354984437,1740856256821,-644.77,0.00025478,2]
[354984438,1740856256830,-300.0,0.00025478,10]
[354984439,1740856256840,-666.0,0.00025478,2]
[354984440,1740856256849,-100000.0,0.00025479,4]
[354984441,1740856256859,-151.0,0.00025479,7]
[354984442,1740856256868,-248.533145,0.00025479,7]
[354984443,1740856256877,-151.0,0.00025479,7]
[354984444,1740856256887,-151.0,0.00025479,7]
[354984445,1740856256897,-194.188759,0.00025479,7]
[354984446,1740856256906,-500.0,0.00025479,2]
[354984447,1740856256916,-500.0,0.00025479,2]
[354984448,1740856256925,-500.0,0.00025479,2]
[354984449,1740856256934,-500.0,0.00025479,2]
[354984450,1740856256944,-500.0,0.00025479,2]
[354984451,1740856256954,-500.0,0.00025479,2]
[354984452,1740856256963,-500.0,0.00025479,2]
[354984453,1740856256973,-500.0,0.00025479,2]
[354984454,1740856256983,-500.0,0.00025479,2]
[354984455,1740856256992,-500.0,0.00025479,2]
[354984456,1740856257002,-500.0,0.00025479,2]
[354984457,1740856257012,-199.191611,0.00025479,7]
[354984458,1740856257022,-199.191607,0.00025479,7]
[354984459,1740856257031,-595.1,0.00025479,2]
[354984460,1740856257041,-500.0,0.00025479,2]
[354984461,1740856257050,-500.0,0.00025479,2]
[354984462,1740856257060,-618.56,0.00025479,10]
[354984463,1740856257070,-407.11082,0.00025479,7]
[354984464,1740856257080,-407.110828,0.00025479,7]
[354984465,1740856257089,-500.0,0.00025479,2]
[354984466,1740856257099,-688.77,0.00025479,2]
[354984467,1740856257108,-500.0,0.00025479,2]
[354984468,1740856257118,-500.0,0.00025479,2]
[354984469,1740856257127,-151.0,0.00025479,7]
[354984470,1740856257137,-500.0,0.00025479,2]
[354984471,1740856257147,-500.0,0.00025479,2]
[354984472,1740856257157,-509.36,0.00025479,2]
[354984473,1740856257166,-378.525501,0.00025479,7]
[354984474,1740856257175,-378.525498,0.00025479,7]
[354984475,1740856257185,-623.3,0.00025479,2]
[354984476,1740856257195,-500.0,0.00025479,2]
[354984477,1740856257204,-631.28,0.00025479,2]
[354984478,1740856257214,-500.0,0.00025479,2]
[354984479,1740856257224,-500.0,0.00025479,2]
[354984480,1740856257233,-500.0,0.00025479,2]
[354984481,1740856257243,-500.0,0.00025479,2]
[354984482,1740856257253,-632.43,0.00025479,2]
[354984483,1740856257263,-500.0,0.00025479,2]
[354984484,1740856257273,-663.0,0.00025479,2]
[354984485,1740856257283,-1421.164967,0.00025479,2]
[354984486,1740856257293,-532.83,0.00025479,2]
[354984487,1740856257303,-500.0,0.00025479,2]
[354984488,1740856257313,-661.03,0.00025479,2]
[354984489,1740856257322,-500.0,0.00025479,2]
[354984490,1740856257332,-1027.29,0.00025479,2]
[354984491,1740856257341,-707.13,0.00025479,2]
[354984492,1740856257351,-500.0,0.00025479,2]
[354984493,1740856257362,-500.0,0.00025479,2]
[354984494,1740856257371,-500.0,0.00025479,2]
[354984495,1740856257381,-500.0,0.00025479,2]
[354984496,1740856257391,-151.0,0.00025479,7]
[354984497,1740856257401,-500.0,0.00025479,2]
[354984498,1740856257411,-1254.33,0.00025479,2]
[354984499,1740856257420,-500.0,0.00025479,2]
[354984500,1740856257433,-500.0,0.00025479,2]
[354984501,1740856257445,-514.84,0.00025479,2]
[354984502,1740856257454,-500.0,0.00025479,2]
[354984503,1740856257464,-500.0,0.00025479,2]
[354984504,1740856257475,-500.0,0.00025479,2]
[354984505,1740856257484,-512.94,0.00025479,2]
[354984506,1740856257494,-500.0,0.00025479,2]
[354984507,1740856257505,-523.3,0.00025479,2]
[354984508,1740856257514,-1096.097519,0.00025479,2]
[354984509,1740856257524,-500.0,0.00025479,2]
[354984510,1740856257533,-571.6,0.00025479,2]
[354984511,1740856257543,-500.0,0.00025479,2]
[354984512,1740856257552,-151.0,0.00025479,7]
[354984513,1740856257562,-500.0,0.00025479,2]
[354984514,1740856257571,-500.0,0.00025479,2]
[354984515,1740856257582,-704.75,0.00025479,2]
[354984516,1740856257591,-924.57,0.00025479,2]
[354984517,1740856257601,-820.53,0.00025479,2]
[354984518,1740856257611,-503.08,0.00025479,2]
[354984519,1740856257620,-550.72,0.00025479,2]
[354984521,1740856257630,-500.0,0.00025479,2]
[354984523,1740856257639,-500.0,0.00025479,2]
[354984525,1740856257649,-548.07,0.00025479,2]
[354984527,1740856257659,-500.0,0.00025479,2]
[354984529,1740856257668,-779.96,0.00025479,2]
[354984531,1740856257677,-500.0,0.00025479,2]
[354984533,1740856257689,-500.0,0.00025479,2]
[354984535,1740856257699,-500.0,0.00025479,2]
[354984537,1740856257709,-500.0,0.00025479,2]
[354984539,1740856257718,-500.0,0.00025479,2]
[354984541,1740856257728,-500.0,0.00025479,2]
[354984543,1740856257737,-504.27,0.00025479,2]
[354984545,1740856257747,-583.8,0.00025479,2]
[354984547,1740856257756,-500.0,0.00025479,2]
[354984549,1740856257766,-1171.62,0.00025479,2]
[354984551,1740856257775,-151.0,0.00025479,7]
[354984553,1740856257785,-724.92,0.00025479,2]
[354984555,1740856257795,-500.0,0.00025479,2]
[354984557,1740856257804,-500.0,0.00025479,2]
[354984559,1740856257814,-783.05,0.00025479,2]
[354984561,1740856257825,-500.0,0.00025479,2]
[354984563,1740856257835,-500.0,0.00025479,2]
[354984565,1740856257844,-500.0,0.00025479,2]
[354984567,1740856257855,-500.0,0.00025479,2]
[354984569,1740856257865,-837.89,0.00025479,2]
[354984571,1740856257874,-374.50581723,0.00025479,2]
[354984573,1740856257884,-500.0,0.00025479,2]
[354984575,1740856257895,-178.754382,0.00025479,7]
[354984577,1740856257905,-500.0,0.00025479,2]
[354984579,1740856257915,-523.38,0.00025479,2]
[354984581,1740856257925,-500.0,0.00025479,2]
[354984583,1740856257935,-500.0,0.00025479,2]
[354984585,1740856257946,-500.0,0.00025479,2]
[354984587,1740856257955,-178.754384,0.00025479,7]
[354984589,1740856257965,-926.76,0.00025479,2]
[354984591,1740856257975,-151.0,0.00025479,7]
[354984593,1740856257985,-581.63,0.00025479,2]
[354984595,1740856257995,-512.3,0.00025479,2]
[354984597,1740856258005,-654.97,0.00025479,2]
[354984599,1740856258015,-2696.96,0.00025479,2]
[354984601,1740856258025,-601.97,0.00025479,2]
[354984603,1740856258035,-500.0,0.00025479,2]
[354984605,1740856258045,-500.0,0.00025479,2]
[354984607,1740856258055,-500.0,0.00025479,2]
[354984609,1740856258065,-630.48,0.00025479,2]
[354984611,1740856258075,-196.081555,0.00025479,7]
[354984613,1740856258084,-196.081554,0.00025479,7]
[354984615,1740856258094,-500.0,0.00025479,2]
[354984617,1740856258104,-500.0,0.00025479,2]
[354984619,1740856258114,-500.0,0.00025479,2]
[354984621,1740856258124,-500.0,0.00025479,2]
[354984623,1740856258134,-500.0,0.00025479,2]
[354984625,1740856258144,-528.28,0.00025479,2]
[354984627,1740856258154,-386.65636269,0.00025479,2]
[354984629,1740856258164,-500.0,0.00025479,2]
[354984631,1740856258174,-698.95,0.00025479,2]
[354984633,1740856258184,-500.0,0.00025479,2]
[354984635,1740856258194,-500.0,0.00025479,2]
[354984637,1740856258204,-151.0,0.00025479,7]
[354984639,1740856258214,-500.0,0.00025479,2]
[354984641,1740856258224,-500.0,0.00025479,2]
[354984643,1740856258234,-500.0,0.00025479,2]
[354984645,1740856258244,-500.0,0.00025479,2]
[354984647,1740856258254,-626.18,0.00025479,2]
[354984649,1740856258264,-500.0,0.00025479,2]
[354984651,1740856258273,-500.0,0.00025479,2]
[354984653,1740856258283,-500.0,0.00025479,2]
[354984655,1740856258293,-745.24,0.00025479,2]
[354984657,1740856258303,-500.0,0.00025479,2]
[354984659,1740856258313,-500.0,0.00025479,2]
[354984661,1740856258323,-500.0,0.00025479,2]
[354984663,1740856258333,-500.0,0.00025479,2]
[354984665,1740856258343,-588.75,0.00025479,2]
[354984667,1740856258353,-500.0,0.00025479,2]
[354984669,1740856258363,-504.35,0.00025479,2]
[354984671,1740856258373,-500.0,0.00025479,2]
[354984673,1740856258383,-500.0,0.00025479,2]
[354984675,1740856258392,-500.0,0.00025479,2]
[354984677,1740856258402,-500.0,0.00025479,2]
[354984679,1740856258412,-500.0,0.00025479,2]
[354984681,1740856258422,-500.0,0.00025479,2]
[354984683,1740856258434,-976.77,0.00025479,2]
[354984685,1740856258445,-500.0,0.00025479,2]
[354984687,1740856258455,-574.0,0.00025479,2]
[354984689,1740856258465,-1503.56,0.00025479,2]
[354984691,1740856258475,-500.0,0.00025479,2]
[354984693,1740856258485,-791.94,0.00025479,2]
[354984695,1740856258494,-613.14,0.00025479,2]
[354984697,1740856258505,-500.0,0.00025479,2]
[354984699,1740856258515,-655.11,0.00025479,2]
[354984701,1740856258524,-500.0,0.00025479,2]
[354984703,1740856258534,-500.0,0.00025479,2]
[354984705,1740856258544,-500.0,0.00025479,2]
[354984707,1740856258554,-500.0,0.00025479,2]
[354984709,1740856258564,-500.0,0.00025479,2]
[354984711,1740856258575,-669.13,0.00025479,2]
[354984713,1740856258586,-500.0,0.00025479,2]
[354984715,1740856258596,-770.03,0.00025479,2]
[354984717,1740856258606,-500.0,0.00025479,2]
[354984719,1740856258617,-613.68,0.00025479,2]
[354984721,1740856258627,-500.0,0.00025479,2]
[354984723,1740856258637,-899.43,0.00025479,2]
[354984725,1740856258646,-500.0,0.00025479,2]
[354984727,1740856258657,-559.35,0.00025479,2]
[354984729,1740856258666,-865.2,0.00025479,2]
[354984731,1740856258676,-231.988162,0.00025479,7]
[354984733,1740856258686,-870.71,0.00025479,2]
[354984735,1740856258696,-231.988169,0.00025479,7]
[354984737,1740856258706,-500.0,0.00025479,2]
[354984739,1740856258716,-543.67,0.00025479,2]
[354984741,1740856258726,-1050.09,0.00025479,2]
[354984743,1740856258735,-500.0,0.00025479,2]
[354984745,1740856258746,-500.0,0.00025479,2]
[354984747,1740856258756,-500.0,0.00025479,2]
[354984749,1740856258765,-640.07,0.00025479,2]
[354984751,1740856258775,-500.0,0.00025479,2]
[354984753,1740856258785,-500.0,0.00025479,2]
[354984755,1740856258795,-500.0,0.00025479,2]
[354984757,1740856258804,-500.0,0.00025479,2]
[354984759,1740856258814,-634.84,0.00025479,2]
[354984761,1740856258824,-556.8,0.00025479,2]
[354984763,1740856258834,-515.04,0.00025479,2]
[354984765,1740856258844,-500.0,0.00025479,2]
[354984767,1740856258853,-3254.27,0.00025479,2]
[354984769,1740856258863,-500.0,0.00025479,2]
[354984771,1740856258873,-500.0,0.00025479,2]
[354984773,1740856258883,-500.0,0.00025479,2]
[354984775,1740856258893,-500.0,0.00025479,2]
[354984777,1740856258904,-500.0,0.00025479,2]
[354984779,1740856258914,-509.27,0.00025479,2]
[354984781,1740856258924,-500.0,0.00025479,2]
[354984783,1740856258935,-500.0,0.00025479,2]
[354984811,1740856259192,-500.0,0.00025479,2]
[354984814,1740856259204,-500.0,0.00025479,2]
[354984816,1740856259215,-784.34,0.00025479,2]
[354984818,1740856259225,-633.96,0.00025479,2]
[354984820,1740856259235,-7253.78,0.00025479,2]
[354984822,1740856259245,-949.8,0.00025479,2]
[354984823,1740856259255,-500.0,0.00025479,2]
[354984825,1740856259264,-1342.91,0.00025479,2]
[354984827,1740856259274,-641.56,0.00025479,2]
[354984829,1740856259284,-750.48,0.00025479,2]
[354984832,1740856259294,-500.0,0.00025479,2]
[354984834,1740856259304,-1234.68,0.00025479,2]
[354984836,1740856259314,-511.71,0.00025479,2]
[354984838,1740856259323,-604.81,0.00025479,2]
[354984840,1740856259333,-593.14,0.00025479,2]
[354984841,1740856259343,-1270.91,0.00025479,2]
[354984843,1740856259353,-500.0,0.00025479,2]
[354984845,1740856259363,-500.0,0.00025479,2]
[354984847,1740856259373,-2237.39,0.00025479,2]
[354984849,1740856259383,-586.47,0.00025479,2]
[354984851,1740856259393,-547.79,0.00025479,2]
[354984854,1740856259403,-970.44,0.00025479,2]
[354984856,1740856259413,-500.0,0.00025479,2]
[354984858,1740856259422,-500.0,0.00025479,2]
[354984859,1740856259436,-976.15,0.00025479,2]
[354984860,1740856259446,-500.0,0.00025479,2]
[354984861,1740856259455,-500.0,0.00025479,2]
[354984862,1740856259465,-1242.5,0.00025479,2]
[354984863,1740856259475,-500.0,0.00025479,2]
[354984864,1740856259484,-1437.04,0.00025479,2]
[354984865,1740856259494,-812.04,0.00025479,2]
[354984866,1740856259503,-869.82,0.00025479,2]
[354984868,1740856259515,-806.75,0.00025479,2]
[354984870,1740856259526,-2822.69,0.00025479,2]
[354984872,1740856259536,-873.08,0.00025479,2]
[354984875,1740856259546,-1414.88,0.00025479,2]
[354984877,1740856259557,-500.0,0.00025479,2]
[354984879,1740856259567,-730.6,0.00025479,2]
[354984881,1740856259577,-500.0,0.00025479,2]
[354984883,1740856259587,-500.0,0.00025479,2]
[354984885,1740856259597,-500.0,0.00025479,2]
[354984887,1740856259607,-1890.73,0.00025479,2]
[354984889,1740856259618,-889.77,0.00025479,2]
[354984891,1740856259629,-907.91,0.00025479,2]
[354984893,1740856259638,-1114.97,0.00025479,2]
[354984895,1740856259650,-15462.04,0.00025479,2]
[354984897,1740856259660,-500.0,0.00025479,2]
[354984899,1740856259669,-1466.07,0.00025479,2]
[354984901,1740856259679,-500.0,0.00025479,2]
[354984903,1740856259689,-792.403415,0.00025479,7]
[354984905,1740856259701,-500.0,0.00025479,2]
[354984907,1740856259711,-939.73,0.00025479,2]
[354984909,1740856259720,-632.33597875,0.00025479,2]
[354984911,1740856259730,-1121.02,0.00025479,2]
[354984913,1740856259740,-510.66463862,0.00025479,2]
[354984915,1740856259750,-1074.69,0.00025479,2]
[354984917,1740856259760,-639.35,0.00025479,2]
[354984919,1740856259772,-792.403418,0.00025479,7]
[354984921,1740856259783,-504.15,0.00025479,2]
[354984923,1740856259793,-500.0,0.00025479,2]
[354984925,1740856259803,-500.0,0.00025479,2]
[354984927,1740856259815,-687.8,0.00025479,2]
[354984929,1740856259825,-500.0,0.00025479,2]
[354984931,1740856259835,-954.8,0.00025479,2]
[354984933,1740856259844,-500.0,0.00025479,2]
[354984935,1740856259854,-594.86,0.00025479,2]
[354984937,1740856259864,-500.0,0.00025479,2]
[354984939,1740856259874,-708.75,0.00025479,2]
[354984941,1740856259884,-909.23,0.00025479,2]
[354984943,1740856259894,-1993.28,0.00025479,2]
[354984945,1740856259904,-519.54,0.00025479,2]
[354984947,1740856259914,-500.0,0.00025479,2]
[354984949,1740856259925,-838.22,0.00025479,2]
[354984951,1740856259935,-500.0,0.00025479,120]
[354984953,1740856259946,-500.0,0.00025479,2]
[354984955,1740856259956,-537.25,0.00025479,2]
[354984958,1740856259966,-755.75,0.00025479,2]
[354984960,1740856259975,-692.09,0.00025479,2]
[354984962,1740856259985,-937.03,0.00025479,2]
[354984963,1740856259994,-2605.69,0.00025479,2]
[354984966,1740856260004,-500.0,0.00025479,2]
[354984968,1740856260014,-564.77,0.00025479,2]
[354984970,1740856260024,-1184.01,0.00025479,2]
[354984972,1740856260033,-551.31,0.00025479,2]
[354984974,1740856260044,-819.54,0.00025479,2]
[354984976,1740856260054,-520.8,0.00025479,2]
[354984978,1740856260064,-12176.22,0.00025479,2]
[354984980,1740856260074,-2100.69,0.00025479,2]
[354984982,1740856260084,-500.0,0.00025479,2]
[354984984,1740856260094,-500.0,0.00025479,2]
[354984986,1740856260104,-817.55,0.00025479,2]
[354984988,1740856260114,-500.0,0.00025479,2]
[354984990,1740856260123,-985.63,0.00025479,2]
[354984992,1740856260133,-500.0,0.00025479,2]
[354984994,1740856260143,-579.24155189,0.00025479,2]
[354984996,1740856260153,-1030.34,0.00025479,2]
[354984998,1740856260163,-500.0,0.00025479,2]
[354985000,1740856260173,-500.0,0.00025479,2]
[354985002,1740856260183,-2166.07,0.00025479,2]
[354985004,1740856260194,-500.0,0.00025479,2]
[354985006,1740856260203,-906.42,0.00025479,2]
[354985008,1740856260213,-500.0,0.00025479,2]
[354985010,1740856260223,-500.0,0.00025479,2]
[354985012,1740856260233,-809.95,0.00025479,2]
[354985014,1740856260243,-982.03,0.00025479,2]
[354985017,1740856260253,-500.0,0.00025479,2]
[354985018,1740856260263,-500.0,0.00025479,2]
[354985021,1740856260273,-1295.8,0.00025479,2]
[354985022,1740856260283,-529.08,0.00025479,2]
[354985024,1740856260294,-3221.36,0.00025479,2]
[354985026,1740856260304,-985.14,0.00025479,2]
[354985028,1740856260314,-500.0,0.00025479,2]
[354985030,1740856260324,-752.49,0.00025479,2]
[354985033,1740856260335,-822.0,0.00025479,2]
[354985034,1740856260344,-933.97,0.00025479,2]
[354985036,1740856260355,-522.68,0.00025479,2]
[354985039,1740856260365,-708.76,0.00025479,2]
[354985041,1740856260375,-500.0,0.00025479,2]
[354985042,1740856260386,-500.0,0.00025479,2]
[354985044,1740856260395,-1029.3,0.00025479,2]
[354985046,1740856260407,-518.36,0.00025479,2]
[354985048,1740856260417,-500.0,0.00025479,2]
[354985050,1740856260427,-10408.95,0.00025479,2]
[354985052,1740856260439,-691.85,0.00025479,2]
[354985054,1740856260450,-667.94,0.00025479,2]
[354985057,1740856260460,-500.0,0.00025479,2]
[354985059,1740856260471,-500.0,0.00025479,2]
[354985061,1740856260480,-1204.62,0.00025479,2]
[354985063,1740856260490,-500.0,0.00025479,2]
[354985065,1740856260499,-500.0,0.00025479,2]
[354985067,1740856260509,-1522.19,0.00025479,2]
[354985069,1740856260519,-500.0,0.00025479,2]
[354985071,1740856260528,-500.0,0.00025479,2]
[354985073,1740856260538,-500.0,0.00025479,2]
[354985075,1740856260548,-500.0,0.00025479,2]
[354985077,1740856260559,-500.0,0.00025479,2]
[354985079,1740856260568,-500.0,0.00025479,2]
[354985081,1740856260578,-500.0,0.00025479,2]
[354985083,1740856260587,-645.19,0.00025479,2]
[354985085,1740856260597,-500.0,0.00025479,2]
[354985087,1740856260606,-500.0,0.00025479,2]
[354985089,1740856260616,-500.0,0.00025479,2]
[354985091,1740856260625,-651.2,0.00025479,2]
[354985093,1740856260635,-1449.79,0.00025479,2]
[354985095,1740856260644,-500.0,0.00025479,2]
[354985097,1740856260655,-500.0,0.00025479,2]
[354985099,1740856260666,-2292.81,0.00025479,2]
[354985101,1740856260675,-948.25,0.00025479,2]
[354985103,1740856260685,-272.70183279,0.00025479,2]
[354985105,1740856260694,-500.0,0.00025479,2]
[354985107,1740856260704,-1664.15,0.00025479,2]
[354985109,1740856260714,-500.0,0.00025479,2]
[354985111,1740856260723,-500.0,0.00025479,2]
[354985113,1740856260733,-500.0,0.00025479,2]
[354985115,1740856260742,-902.78,0.00025479,2]
[354985117,1740856260752,-563.76,0.00025479,2]
[354985120,1740856260762,-646.84,0.00025479,2]
[354985122,1740856260772,-500.0,0.00025479,2]
[354985124,1740856260782,-618.01,0.00025479,2]
[354985126,1740856260791,-5190.55,0.00025479,2]
[354985128,1740856260801,-960.13,0.00025479,2]
[354985130,1740856260810,-1910.125756,0.00025479,7]
[354985132,1740856260819,-500.0,0.00025479,2]
[354985134,1740856260829,-1609.53,0.00025479,2]
[354985136,1740856260839,-1910.125751,0.00025479,7]
[354985138,1740856260848,-755.39,0.00025479,2]
[354985140,1740856260858,-500.0,0.00025479,2]
[354985142,1740856260867,-500.0,0.00025479,2]
[354985144,1740856260877,-651.25,0.00025479,2]
[354985145,1740856260887,-773.56,0.00025479,2]
[354985147,1740856260896,-153.78,0.00025486,2]
[354985148,1740856260906,-3606.69,0.000256,2]
[354985149,1740856260915,-294.83491814,0.0002562,2]
[354985150,1740856260924,-401.9,0.00025634,120]
[354985151,1740856260933,-2168.4405782,0.00025659,2]
[354985152,1740856260942,-307.51775255,0.00025693,4]
[354985153,1740856260952,-666.0,0.00025752,2]
[354985154,1740856260961,-644.77,0.00025752,2]
[354985155,1740856260970,-100000.0,0.00025753,4]
[354985156,1740856260980,-500.0,0.00025753,2]
[354985157,1740856260990,-500.0,0.00025753,2]
[354985158,1740856260999,-500.0,0.00025753,2]
[354985159,1740856261008,-500.0,0.00025753,2]
[354985160,1740856261018,-500.0,0.00025753,2]
[354985161,1740856261027,-500.0,0.00025753,2]
[354985162,1740856261036,-500.0,0.00025753,2]
[354985163,1740856261045,-500.0,0.00025753,2]
[354985164,1740856261055,-500.0,0.00025753,2]
[354985165,1740856261064,-500.0,0.00025753,2]
[354985166,1740856261073,-500.0,0.00025753,2]
[354985167,1740856261083,-595.1,0.00025753,2]
[354985168,1740856261092,-500.0,0.00025753,2]
[354985169,1740856261102,-500.0,0.00025753,2]
[354985170,1740856261112,-500.0,0.00025753,2]
[354985171,1740856261121,-688.77,0.00025753,2]
[354985172,1740856261131,-500.0,0.00025753,2]
[354985173,1740856261141,-500.0,0.00025753,2]
[354985174,1740856261151,-500.0,0.00025753,2]
[354985175,1740856261161,-500.0,0.00025753,2]
[354985176,1740856261172,-509.36,0.00025753,2]
[354985177,1740856261182,-623.3,0.00025753,2]
[354985178,1740856261193,-500.0,0.00025753,2]
[354985179,1740856261203,-631.28,0.00025753,2]
[354985180,1740856261212,-500.0,0.00025753,2]
[354985181,1740856261222,-500.0,0.00025753,2]
[354985182,1740856261232,-500.0,0.00025753,2]
[354985183,1740856261241,-500.0,0.00025753,2]
[354985184,1740856261251,-632.43,0.00025753,2]
[354985185,1740856261261,-500.0,0.00025753,2]
[354985186,1740856261270,-663.0,0.00025753,2]
[354985187,1740856261283,-1421.164967,0.00025753,2]
[354985188,1740856261292,-532.83,0.00025753,2]
[354985189,1740856261301,-500.0,0.00025753,2]
[354985190,1740856261317,-661.03,0.00025753,2]
[354985191,1740856261326,-500.0,0.00025753,2]
[354985192,1740856261340,-1027.29,0.00025753,2]
[354985193,1740856261351,-707.13,0.00025753,2]
[354985194,1740856261360,-500.0,0.00025753,2]
[354985195,1740856261370,-500.0,0.00025753,2]
[354985196,1740856261379,-500.0,0.00025753,2]
[354985197,1740856261389,-500.0,0.00025753,2]
[354985198,1740856261399,-500.0,0.00025753,2]
[354985199,1740856261409,-1254.33,0.00025753,2]
[354985200,1740856261419,-500.0,0.00025753,2]
[354985201,1740856261431,-500.0,0.00025753,2]
[354985202,1740856261440,-514.84,0.00025753,2]
[354985203,1740856261451,-500.0,0.00025753,2]
[354985204,1740856261461,-500.0,0.00025753,2]
[354985205,1740856261473,-500.0,0.00025753,2]
[354985206,1740856261482,-512.94,0.00025753,2]
[354985207,1740856261492,-500.0,0.00025753,2]
[354985208,1740856261502,-523.3,0.00025753,2]